[Event "Grand Prix Romania 1st Stage 2024"]
[Site "Bucuresti"]
[Date "2024.03.24"]
[Round "6.3"]
[White "Sargsyan, Shant"]
[Black "Zajic, Milan"]
[Result "1-0"]
[ECO "C54"]
[WhiteElo "2637"]
[BlackElo "2436"]
[Annotator "TA"]
[PlyCount "105"]
[EventDate "2024.03.20"]
[EventType "swiss"]
[EventCountry "ROU"]
[SourceTitle "playchess.com"]
[Source "ChessBase"]
[SourceQuality "1"]
[TimeControl "900+5"]

{[%evp 19,105,10,11,-14,34,30,61,25,23,0,58,7,30,14,45,21,49,50,47,50,41,49,83,16,24,24,23,22,27,16,16,0,0,0,0,0,0,-8,73,65,77,71,287,178,246,235,248,235,240,254,238,249,254,247,459,455,443,416,407,400,398,393,385,375,544,544,526,459,579,473,524,504,29968,29969,29968,29969,29973,29974,29974,29974,29973,29975,29975,29975,29975,29976,29963,1662]} 1. e4 {[%emt 0:00:02]} e5 {[%emt 0:00:01]} 2. Nf3 {[%emt 0:00:02]} Nc6 {[%emt 0:00:02]} 3. Bc4 {[%emt 0:00:02]} Nf6 {[%emt 0:00:02]} 4. d3 {[%emt 0:00:02]} Bc5 {[%emt 0:00:02]} 5. Bg5 {[%emt 0:00:12]} h6 {[%emt 0:00:09]} 6. Bh4 {[%emt 0:00:02]} a6 {[%emt 0:00:24]} 7. c3 {[%emt 0:00:09]} d6 {[%emt 0:01:37]} 8. Nbd2 {[%emt 0:00:08] C54: Giuoco Piano: 4 c3 Nf6, main lines with 5 d4 and 5 d3.} Ba7 {[%emt 0:00:08]} 9. O-O {[%emt 0:00:09]} g5 {[%emt 0:01:54] 9...Qe7 is the hot move.} 10. Bg3 {[%emt 0:00:02]} O-O {[%emt 0:00:02]} 11. a4 {[%emt 0:00:41] 11.Bb3 is not played anymore.} Bg4 {[%emt 0:00:22]} (11... Nh7 $11 {deserves consideration.}) 12. h3 $14 {[%emt 0:00:54]} Bd7 {[%emt 0:00:38]} 13. b4 {[%emt 0:00:23]} Nh5 {[%emt 0:00:44]} 14. Kh1 $146 {[%emt 0:00:51]} (14. Bh2 $5) ({Predecessor:} 14. Bh2 Nf4 15. Bxf4 gxf4 16. Kh2 Qf6 17. Qe2 Kh7 18. Rg1 Rg8 19. Nf1 Rg7 20. g4 {0-1 Duessler,S-Petkidis,A GER-chT Nord-West U20 2006 (1.5)}) 14... Nf4 {[%emt 0:00:52]} (14... Kg7 $11) 15. b5 {[%emt 0:00:51]} (15. Bxf4 $14 gxf4 16. Qe2) 15... Na5 $11 {[%emt 0:00:48]} 16. Bxf4 {[%emt 0:00:37]} gxf4 {[%emt 0:00:16]} 17. Bd5 {[%emt 0:00:05]} c6 {[%emt 0:00:26]} 18. bxc6 {[%emt 0:00:24]} bxc6 {[%emt 0:00:04]} 19. Ba2 {[%emt 0:00:02]} Kh7 {[%emt 0:01:52]} 20. d4 {[%emt 0:00:10]} Qf6 {[%emt 0:02:19]} 21. dxe5 {[%emt 0:02:06]} (21. Nc4 $16 Nxc4 22. Bxc4) 21... dxe5 $11 {[%emt 0:00:02]} 22. Nc4 {[%emt 0:00:01]} Nxc4 {[%emt 0:00:13]} 23. Qxd7 {[%emt 0:00:02]} Nb6 $1 {[%emt 0:01:40]} 24. Qc7 {[%emt 0:00:57]} Nxa4 {[%emt 0:01:10]} 25. Qxe5 {[%emt 0:03:44]} Qxe5 {[%emt 0:00:03]} 26. Nxe5 {[%emt 0:00:01]} Nxc3 {[%emt 0:00:07]} 27. Bxf7 {[%emt 0:01:41]} (27. Nxf7 $2 Nxa2 (27... Nxe4 28. Bb1 $14) 28. Nd6 Nb4 $19) 27... Kg7 {[%emt 0:01:01]} 28. Bg6 {[%emt 0:00:40]} Bb8 {[%emt 0:00:20]} (28... Nb5 $11 29. Rac1 (29. Rxa6 Bd4 $17) 29... Bd4) 29. Nd7 $16 {[%emt 0:00:06]} (29. Nxc6 $2 Kxg6 30. e5 Re8 $19) 29... Rd8 {[%emt 0:00:03]} 30. Bf5 {[%emt 0:00:21]} Ra7 $2 {[%emt 0:00:02]} (30... Bd6 $16) 31. Rac1 {[%emt 0:00:37]} Ne2 {[%emt 0:00:10] [#]} (31... Rdxd7 $142 32. Bxd7 (32. Rxc3 Rd6 $16) 32... Be5) 32. Nxb8 $1 $18 {[%emt 0:00:10]} (32. Rxc6 $6 Rdxd7 33. Bxd7 Rxd7 $14) (32. Rb1 $6 Bc7) 32... Rxb8 {[%emt 0:00:03]} (32... Nxc1 $2 {is the wrong capture.} 33. Nxc6 Rd2 34. Nxa7 $18) 33. Rxc6 {[%emt 0:00:01]} Nd4 {[%emt 0:00:08]} 34. Rg6+ {[%emt 0:00:02]} Kf7 {[%emt 0:00:02]} 35. Rxh6 {[%emt 0:00:09]} Nxf5 {[%emt 0:00:02]} 36. exf5 {[%emt 0:00:04]} Re7 $2 {[%emt 0:00:01]} (36... Kg7 37. Rg6+ Kf7) 37. Rxa6 $18 {[%emt 0:00:17]} Rb5 {[%emt 0:00:00]} 38. Re6 {[%emt 0:00:33]} Rd7 {[%emt 0:00:10]} 39. Re4 {[%emt 0:00:18]} ({Inferior is} 39. g4 fxg3 40. f4 (40. fxg3 Rd2 $11) 40... Rd3 $11) 39... Rxf5 {[%emt 0:00:01]} 40. Kh2 {[%emt 0:00:11]} Rd2 {[%emt 0:00:01]} 41. h4 {[%emt 0:00:08]} Kg6 {[%emt 0:00:18]} (41... Kg7 {was worth a try.} 42. Re7+ Kh6) 42. Kh3 $18 {[%emt 0:00:02]} Kh5 {[%emt 0:00:00]} 43. f3 {[%emt 0:00:11]} Rd6 {[%emt 0:00:05]} 44. Re8 {[%emt 0:00:17]} Rff6 {[%emt 0:00:15]} 45. Rfe1 {[%emt 0:00:06]} Rd5 {[%emt 0:00:05]} (45... Rd7 $18 46. R1e7 Rfd6 47. Rxd7 Rxd7) 46. R1e5+ {[%emt 0:00:04]} Rxe5 {[%emt 0:00:01]} 47. Rxe5+ {[%emt 0:00:01]} Kg6 {[%emt 0:00:01]} 48. Kg4 {[%emt 0:00:03]} Rf8 {[%emt 0:00:01]} 49. Rg5+ {[%emt 0:00:08]} Kh6 {[%emt 0:00:01]} 50. Rf5 {[%emt 0:00:05]} Rg8+ {[%emt 0:00:01] [#]} 51. Kh3 $1 {[%emt 0:00:01]} Rg3+ {[%emt 0:00:05]} 52. Kh2 {[%emt 0:00:00]} Rg7 {[%emt 0:00:03]} 53. Rxf4 {[%emt 0:00:01]} 1-0

[Event "Grand Prix Romania 1st Stage 2024"]
[Site "Bucuresti"]
[Date "2024.03.24"]
[Round "6.4"]
[White "Motylev, Alexander"]
[Black "Secheres, Adrian-Simion"]
[Result "1-0"]
[ECO "B08"]
[WhiteElo "2611"]
[BlackElo "2371"]
[Annotator "TA"]
[PlyCount "43"]
[EventDate "2024.03.20"]
[EventType "swiss"]
[EventCountry "ROU"]
[SourceTitle "playchess.com"]
[Source "ChessBase"]
[SourceQuality "1"]
[TimeControl "900+5"]

{[%evp 16,43,29,32,40,41,50,56,108,47,41,55,106,107,117,126,156,142,168,114,150,134,310,312,288,291,301,302,296,285]} 1. e4 {[%emt 0:00:02]} Nc6 {[%emt 0:00:01]} 2. Nf3 {[%emt 0:00:48]} d6 {[%emt 0:00:04]} 3. d4 {[%emt 0:00:07]} Nf6 {[%emt 0:00:04]} 4. Nc3 {[%emt 0:00:03]} g6 {[%emt 0:00:07]} 5. d5 {[%emt 0:00:32]} Nb8 {[%emt 0:00:03]} 6. h3 {[%emt 0:00:23]} Bg7 {[%emt 0:00:04]} 7. Bc4 {[%emt 0:00:03]} O-O {[%emt 0:00:14]} 8. O-O {[%emt 0:00:02]} c6 {[%emt 0:01:12]} 9. a4 {[%emt 0:00:05]} Qc7 {[%emt 0:01:22]} 10. Qe2 {[%emt 0:00:24]} Nbd7 {[%emt 0:01:24]} 11. Re1 {[%emt 0:00:37]} Nc5 {[%emt 0:02:41] [#]} (11... a6 $14) 12. dxc6 {[%emt 0:02:22]} (12. e5 $1 $16 {[%cal Re5f6]} dxe5 13. dxc6 (13. Qxe5 Qxe5 14. Rxe5 Nxd5 $11) (13. Nxe5 cxd5 14. Nxd5 Nxd5 $11)) 12... bxc6 $14 {[%emt 0:00:57]} 13. e5 {[%emt 0:00:03]} dxe5 {[%emt 0:00:09]} (13... Ne8 $14) 14. Qxe5 $16 {[%emt 0:01:34]} Qxe5 {[%emt 0:00:55]} 15. Nxe5 {[%emt 0:00:08]} Bb7 {[%emt 0:00:39]} 16. a5 {[%emt 0:00:01]} a6 {[%emt 0:00:13]} 17. Bg5 {[%emt 0:01:04]} (17. Be3 $18 Nce4 18. Na4) 17... Rad8 {[%emt 0:00:55]} 18. Ra3 {[%emt 0:01:41] aiming for b4. White has more active pieces.} Ncd7 $2 {[%emt 0:03:11] [#] A mistake that costs the game.} (18... e6 $16 19. Bf1 Rb8) 19. Nxf7 $18 {[%emt 0:00:57] White has a decisive advantage.} Rxf7 {[%emt 0:00:03]} 20. Rxe7 {[%emt 0:00:18]} Rdf8 {[%emt 0:00:12]} 21. Bxf6 {[%emt 0:00:26]} ({Less strong is} 21. Bxf7+ Rxf7 22. Re2 Nc5 $16) 21... Nxf6 {[%emt 0:00:50]} 22. Rxb7 {[%emt 0:00:12] Weighted Error Value: White=0.12 (very precise) /Black=0.36.  Loses game:     	---       	Black=1      Mistake:       	White=2     	Black=2      Inaccurate:     	---       	Black=1      OK:         	White=2     	Black=1      Best:        	White=3     	Black=1} 1-0

[Event "Grand Prix Romania 1st Stage 2024"]
[Site "Bucuresti"]
[Date "2024.03.24"]
[Round "6.5"]
[White "Ponomariov, Ruslan"]
[Black "Istratescu, Andrei"]
[Result "1/2-1/2"]
[ECO "D40"]
[WhiteElo "2646"]
[BlackElo "2374"]
[Annotator "TA"]
[PlyCount "101"]
[EventDate "2024.03.20"]
[EventType "swiss"]
[EventCountry "ROU"]
[SourceTitle "playchess.com"]
[Source "ChessBase"]
[SourceQuality "1"]
[TimeControl "900+5"]

{[%evp 18,101,19,2,51,52,52,0,0,0,62,59,58,33,49,37,41,19,237,19,26,30,26,0,7,0,6,0,0,0,20,19,31,22,34,35,27,-89,-103,-241,-250,-244,-234,-246,-240,-237,-243,-218,-173,-169,-148,-147,-65,-60,-56,-144,-144,-118,-31,-106,-15,-15,-14,-30,-30,-32,0,0,0,0,0,0,0,0,0,0,0,0,0,0,0,0,0,0,0,0]} 1. Nf3 {[%emt 0:00:03]} Nf6 {[%emt 0:00:06]} 2. c4 {[%emt 0:00:05]} e6 {[%emt 0:00:09]} 3. Nc3 {[%emt 0:00:06]} d5 {[%emt 0:00:09]} 4. d4 {[%emt 0:00:03]} c5 {[%emt 0:00:32]} 5. e3 {[%emt 0:01:17]} Nc6 {[%emt 0:00:29]} 6. a3 {[%emt 0:00:02]} a6 {[%emt 0:00:34]} 7. dxc5 {[%emt 0:00:14]} Bxc5 {[%emt 0:00:02]} 8. b4 {[%emt 0:00:01]} Ba7 {[%emt 0:00:18]} 9. Bb2 {[%emt 0:00:04]} O-O {[%emt 0:00:09]} 10. Qc2 {[%emt 0:00:18]} dxc4 {[%emt 0:01:36]} (10... Bd7 $11 {feels stronger.}) 11. Bxc4 $14 {[%emt 0:00:03]} Qe7 {[%emt 0:00:06]} 12. Ne4 {[%emt 0:01:47]} (12. Rd1 $14) 12... Nxe4 $11 {[%emt 0:01:23]} 13. Qxe4 {[%emt 0:00:02]} Bd7 {[%emt 0:03:14]} ({Better is} 13... Nxb4 $1 $11 14. O-O Nc6) 14. O-O $14 {[%emt 0:00:16] White is much more active.} Rad8 {[%emt 0:00:55]} 15. Rac1 {[%emt 0:00:34]} Bb8 {[%emt 0:00:18]} 16. Rfd1 {[%emt 0:00:22]} Kh8 {[%emt 0:01:16]} 17. Qc2 {[%emt 0:01:55]} Rc8 $2 {[%emt 0:00:26]} (17... e5 $11 {and Black is okay.}) 18. Qc3 $2 {[%emt 0:01:19]} (18. Ng5 Qxg5 19. Rxd7 Bxh2+ (19... Ne5 20. f4 $16) 20. Kxh2 Ne5 21. Bxe5 (21. Rxb7 Rxc4 22. Qxc4 Qh5+ 23. Kg3 Nxc4 $19) 21... Qxe5+ 22. Kg1 b5 $14) ({White has to play} 18. Rxd7 $1 $18 Qxd7 19. Ng5) 18... f6 {[%emt 0:00:12]} 19. Qb3 {[%emt 0:00:28][%cal Od1d7]} e5 {[%emt 0:01:23]} 20. e4 {[%emt 0:00:08]} Bg4 {[%emt 0:00:25]} 21. h3 {[%emt 0:00:07]} Bxf3 {[%emt 0:00:04]} 22. Qxf3 {[%emt 0:07:41]} Ba7 {[%emt 0:03:09]} 23. Bd5 {[%emt 0:00:00]} Bd4 {[%emt 0:00:00]} 24. Bc3 {[%emt 0:00:00]} Bxc3 {[%emt 0:00:00]} 25. Qxc3 {[%emt 0:00:00] Black is weak on the light squares} (25. Rxc3 $2 Nd4 26. Rxd4 exd4 27. Rxc8 Rxc8 $19) 25... Na7 {[%emt 0:00:00][%cal Bc6a7,Ba7b5,Bb5c3][%mdl 32]} 26. Qe3 {[%emt 0:00:00]} Nb5 {[%emt 0:00:00]} 27. Qb6 {[%emt 0:00:00]} (27. Rxc8 $11 {remains equal.} Rxc8 28. Kh2) 27... Nc3 $17 {[%emt 0:00:00]} 28. Qxb7 {[%emt 0:00:00]} (28. Re1 $2 Ne2+ 29. Rxe2 Rxc1+ 30. Kh2 Rb8 $19) (28. Rxc3 $17 Rxc3 29. Bxb7 Rxa3 (29... Rb8 30. Qa7 $11) 30. Bxa6) 28... Qxb7 $19 {[%emt 0:00:00]} (28... Ne2+ 29. Kf1 Qxb7 (29... Rxc1 $2 30. Qxe7 $18) 30. Bxb7 Nxc1 31. Bxc8 Rxc8 32. Rd6) 29. Bxb7 {[%emt 0:00:00]} Ne2+ {[%emt 0:00:00]} 30. Kf1 {[%emt 0:00:00]} Nxc1 {[%emt 0:00:00]} 31. Bxc8 {[%emt 0:00:45]} Rxc8 {[%mdl 4096] Endgame. KRN-KR} 32. Rd6 {[%emt 0:00:00] [#]} a5 {[%emt 0:00:00]} 33. bxa5 {[%emt 0:00:00]} h5 {[%emt 0:00:00]} 34. a6 {[%emt 0:00:00]} Nb3 {[%emt 0:00:00]} (34... Ra8 $17 35. Rc6 Nb3) 35. a7 {[%emt 0:00:00] Hoping for Rb6.} Nd4 {[%emt 0:00:00][%cal Rc8c1]} 36. Ke1 {[%emt 0:00:00] [#]} (36. f4 $1 $15 Nb5 37. Ra6) 36... Ra8 $1 $17 {[%emt 0:00:07]} 37. Ra6 {[%emt 0:00:00]} Nb5 {[%emt 0:00:07]} ({Black should play} 37... Kg8 $17 {And now ...Kf8 would win.} 38. Kd2 Kf7 (38... Nb5 39. a4 $17)) 38. a4 {[%emt 0:00:00] [#]} (38. Rb6 $1 $15 Nxa7 (38... Nxa3 $2 {loses.} 39. Rb8+ Kh7 40. Rxa8 $18) 39. Ra6) 38... Nxa7 {[%emt 0:00:01]} ({Black should try} 38... Nc7 $1 $17 {[%cal Rc7a6]} 39. Ra5 Kg8) 39. Ke2 $11 {[%emt 0:00:00]} Kg8 {[%emt 0:00:02]} 40. Ke3 {[%emt 0:00:00]} Kf7 {[%emt 0:00:01]} 41. f4 {[%emt 0:00:00]} exf4+ 42. Kxf4 {[%emt 0:00:00] The position is equal.} g6 {[%emt 0:00:34]} 43. h4 {[%emt 0:00:00]} Kg7 {[%emt 0:00:01]} 44. g4 {[%emt 0:00:02]} hxg4 {[%emt 0:00:01]} 45. Kxg4 {[%emt 0:00:01]} f5+ {[%emt 0:00:17]} 46. exf5 gxf5+ 47. Kxf5 {[%emt 0:00:16]} Rf8+ {[%emt 0:00:01]} 48. Kg5 {[%emt 0:00:02]} Rf7 {[%emt 0:00:03]} 49. Rg6+ {[%emt 0:00:08]} Kh7 {[%emt 0:00:01]} 50. Rh6+ {[%emt 0:00:01]} Kg7 {[%emt 0:00:01]} 51. Rg6+ {[%emt 0:00:02] Whites escaped into a draw.   Weighted Error Value: White=0.29 (precise) /Black=0.25 (precise) .  Loses game:     	---       	Black=1      Missed win:     	White=1     	---        Mistake:       	White=5     	Black=4      Inaccurate:     	White=1     	Black=1      OK:         	White=13    	Black=13     Best:        	White=2     	Black=3      Strong:       	---       	Black=1} 1/2-1/2

[Event "Grand Prix Romania 1st Stage 2024"]
[Site "Bucuresti"]
[Date "2024.03.24"]
[Round "6.6"]
[White "Jianu, Vlad-Cristian"]
[Black "Mamedov, Rauf"]
[Result "0-1"]
[ECO "D34"]
[WhiteElo "2491"]
[BlackElo "2651"]
[Annotator "TA"]
[PlyCount "60"]
[EventDate "2024.03.20"]
[EventType "swiss"]
[EventCountry "ROU"]
[SourceTitle "playchess.com"]
[Source "ChessBase"]
[SourceQuality "1"]
[TimeControl "900+5"]

{[%evp 24,60,14,22,43,24,27,25,22,0,0,0,0,0,12,-32,-33,-54,-39,-115,-83,-98,-114,-109,-106,-252,-241,-233,-203,-371,-214,-210,-204,-438,-407,-431,-433,-415,-407]} 1. d4 {[%emt 0:00:02]} d5 {[%emt 0:00:12]} 2. Nf3 {[%emt 0:00:03]} c5 {[%emt 0:00:02]} 3. c4 {[%emt 0:00:18]} e6 {[%emt 0:00:02]} 4. cxd5 {[%emt 0:00:10]} exd5 {[%emt 0:00:01]} 5. g3 {[%emt 0:00:05]} Nc6 {[%emt 0:00:02]} 6. Bg2 {[%emt 0:00:01]} Nf6 {[%emt 0:00:01]} 7. O-O {[%emt 0:00:05]} Be7 {[%emt 0:00:02]} 8. dxc5 {[%emt 0:00:24]} Bxc5 {[%emt 0:00:01]} 9. Nc3 {[%emt 0:00:02]} O-O {[%emt 0:00:47]} 10. Na4 {[%emt 0:00:01]} Be7 {[%emt 0:00:45]} 11. Be3 {[%emt 0:00:01]} Bg4 {[%emt 0:00:04]} 12. Rc1 {[%emt 0:00:02]} Re8 {[%emt 0:00:01]} 13. h3 {[%emt 0:00:54]} Bh5 {[%emt 0:00:18]} 14. Nc5 {[%emt 0:00:12]} Bxc5 {[%emt 0:00:22]} 15. Bxc5 {[%emt 0:00:10]} Ne4 {[%emt 0:00:34] White has an edge.} 16. Ba3 {[%emt 0:04:30]} Qb6 {[%emt 0:01:10]} 17. g4 {[%emt 0:02:51]} (17. Qxd5 Nxg3 18. Bc5 Nxe2+ (18... Qxb2 $2 19. fxg3 Bg6 20. Nh4 $18) 19. Kh1 Bxf3 (19... Qxb2 20. Qxh5 g6 21. Qh6 $18) 20. Qxf3 Qxb2 $15) 17... Bg6 {[%emt 0:00:04]} 18. e3 {[%emt 0:00:02]} Rad8 {[%emt 0:00:08]} 19. Qa4 {[%emt 0:00:34]} h5 {[%emt 0:00:53]} 20. Qb3 {[%emt 0:01:03]} Qa6 {[%emt 0:00:54]} 21. Rfd1 {[%emt 0:00:32]} (21. Qd1 $15) 21... hxg4 {[%emt 0:00:24]} 22. hxg4 {[%emt 0:00:10][%cal Og2f1]} Na5 $1 {[%emt 0:01:59] Excellent horsemanship.} (22... Qe2 23. Qc2 Qa6 24. Bf1) 23. Qa4 {[%emt 0:00:44][%cal Od1d5] Threatens to win with Rxd5!} b5 $1 {[%emt 0:00:59]} 24. Qd4 {[%emt 0:00:23] This move loses the game for White.} (24. Qc2 $17) 24... Nc6 $1 $19 {[%emt 0:00:36]} 25. Rxc6 {[%emt 0:00:22]} ({Avoid the trap} 25. Qd3 $2 Nxf2 26. Qd2 Nxd1 27. Rxd1 Qb6 $19) 25... Qxc6 {[%emt 0:00:01]} 26. Qxa7 $2 {[%emt 0:00:11]} (26. Bb4) 26... Ra8 {[%emt 0:01:29]} (26... Qc8 $142 27. Rf1 Qxg4) 27. Qd4 {[%emt 0:00:03] [#]} Ra4 $1 {[%emt 0:00:02]} 28. Qxd5 {[%emt 0:00:26]} (28. Bb4 {was the only defense.} Qc2 (28... Rxa2 $2 29. Ba3 $19) 29. Rf1 Rxa2 30. Ba3) 28... Qxd5 {[%emt 0:00:09]} (28... Qc2 29. Rf1 b4 30. Nd4 $19) 29. Rxd5 {[%emt 0:00:01]} b4 {[%emt 0:00:02]} 30. Rd4 {[%emt 0:02:19] [#]} Rb8 $1 {[%emt 0:00:02] Weighted Error Value: White=0.46/Black=0.12 (very precise) .  Mistake:       	White=4     	Black=1      Inaccurate:     	White=1     	---        OK:         	White=5     	Black=5      Best:        	White=1     	---        Strong:       	---       	Black=5} (30... bxa3 31. Rxa4 axb2 32. Rb4 Nxf2 33. Rxb2 Nxg4 34. Ng5 $19) 0-1

[Event "Grand Prix Romania 1st Stage 2024"]
[Site "Bucuresti"]
[Date "2024.03.24"]
[Round "6.7"]
[White "Bulmaga, Irina"]
[Black "Chigaev, Maksim"]
[Result "0-1"]
[ECO "C45"]
[WhiteElo "2429"]
[BlackElo "2617"]
[Annotator "TA"]
[PlyCount "74"]
[EventDate "2024.03.20"]
[EventType "swiss"]
[EventCountry "ROU"]
[SourceTitle "playchess.com"]
[Source "ChessBase"]
[SourceQuality "1"]
[TimeControl "900+5"]

{[%evp 15,74,0,41,-12,-8,-22,0,-10,41,43,36,43,46,45,118,130,150,0,0,-14,-11,0,0,-31,-35,-31,0,-62,-60,-89,-85,-98,-97,-120,-136,-185,-131,-147,-101,-391,-381,-462,-459,-29994,-98,-451,-436,-428,-328,-577,-550,-762,-784,-29995,-29996,-29996,-29997,-29997,-29991,-29991,-2952]} 1. e4 {[%emt 0:00:03]} e5 {[%emt 0:00:03]} 2. Nf3 {[%emt 0:00:02]} Nc6 {[%emt 0:00:02]} 3. d4 {[%emt 0:00:03]} exd4 {[%emt 0:00:07]} 4. Nxd4 {[%emt 0:00:02]} Qf6 {[%emt 0:00:25]} 5. Be3 {[%emt 0:00:13]} Bc5 {[%emt 0:00:02]} 6. c3 {[%emt 0:00:04]} Nge7 {[%emt 0:00:05]} 7. Bc4 {[%emt 0:00:02]} b6 {[%emt 0:01:40]} 8. O-O {[%emt 0:00:07]} Bb7 {[%emt 0:00:18]} 9. Qd2 {[%emt 0:01:18]} ({White should try} 9. f4 $14) 9... Ne5 $11 {[%emt 0:05:09][%csl LRc4,LRe4]} 10. Be2 {[%emt 0:00:31] Threatens to win with b4.} Bxe4 {[%emt 0:00:37]} 11. b4 {[%emt 0:00:26] The position is equal.} Bxd4 {[%emt 0:01:12]} (11... Bd6 $1 $11) 12. cxd4 $14 {[%emt 0:00:57]} N5g6 {[%emt 0:01:37]} 13. Nc3 {[%emt 0:01:13][%mdl 1024] White has compensation.} Bb7 {[%emt 0:00:05]} 14. Bg5 {[%emt 0:00:28]} Qf5 {[%emt 0:00:25]} (14... Qc6 $1 $14 15. Bf3 d5) 15. g4 {[%emt 0:03:09]} Qe6 {[%emt 0:00:05]} 16. Rfe1 $2 {[%emt 0:00:23]} (16. f4 $16 {f5 would now be deadly.} f6 17. f5) 16... f6 $40 {[%emt 0:01:08][%mdl 128] Black is up to no good.} 17. Bf3 $1 {[%emt 0:00:45]} Bxf3 {[%emt 0:00:05]} 18. Rxe6 {[%emt 0:00:06]} dxe6 {[%emt 0:00:02]} 19. Bf4 {[%emt 0:01:59]} Bxg4 {[%emt 0:00:10]} 20. Bxc7 {[%emt 0:00:20]} O-O {[%emt 0:00:13]} 21. Bg3 {[%emt 0:00:30]} (21. d5 $11) 21... Rfd8 {[%emt 0:00:13]} 22. Qe3 {[%emt 0:00:16]} Rac8 {[%emt 0:00:13][%cal Oe6e5]} 23. Nb5 {[%emt 0:00:20]} Nd5 {[%emt 0:00:11][%csl LRb4,LRe3]} 24. Qe4 {[%emt 0:00:39]} Bf5 {[%emt 0:00:09]} 25. Qf3 {[%emt 0:00:04]} Rc6 $1 {[%emt 0:00:45] ...a6 is the strong threat.} (25... Nxb4 26. Nd6 Rc6 (26... Nh4 $2 27. Qb7 $18) 27. Nxf5 exf5 28. Re1 $11) 26. Qa3 {[%emt 0:01:31] White is weak on the light squares} h5 {[%emt 0:00:26] Black is more active.} ({Black should play} 26... Ngf4 $1 {aiming for ...Bd3.} 27. Bxf4 Nxf4 28. Qxa7 Bh3) 27. Qxa7 $2 {[%emt 0:00:11][%mdl 8192]} (27. h4 $17 {was the only defense.}) 27... h4 $1 $19 {[%emt 0:00:02]} (27... Nxb4 28. Nd6 $11) 28. Qb7 {[%emt 0:00:52]} Rdc8 {[%emt 0:00:15] Hoping for ...Rc1+.} (28... Nxb4 29. Bd6 (29. Bc7 $2 Rd5 $19) 29... Rc4 30. Bxb4 Rxb4 31. Nd6 Rxd4 32. Nxf5 exf5 33. Qxb6 $11) 29. Nd6 {[%emt 0:00:35]} (29. Rf1 $19 hxg3 30. hxg3) 29... hxg3 $2 {[%emt 0:00:55]} (29... R6c7 30. Qxc8+ Rxc8 31. Nxc8 $15) (29... Rc1+ $1 {mates} 30. Rxc1 Rxc1+ 31. Kg2 Ndf4+ (31... hxg3 32. hxg3 Nge7 33. a4 $15) 32. Bxf4 Nxf4+ 33. Kf3 Rc3+ 34. Kxf4 g5#) 30. Nxc8 $4 {[%emt 0:00:07][%mdl 8192] [#]} (30. hxg3 $17 R6c7 (30... Rxd6 31. Qxc8+ Kf7 32. Rc1 $11) (30... R8c7 31. Qa8+ Kh7 32. Nxf5 $17) 31. Qxc8+ Rxc8 32. Nxc8) 30... gxf2+ $1 {[%emt 0:00:02]} 31. Kxf2 {[%emt 0:00:09] [#]} Rc2+ {[%emt 0:00:02]} 32. Ke1 $2 {[%emt 0:00:05]} (32. Kg1 Nh4 33. Ne7+ (33. Nxb6 $2 {leads to mate.} Nf3+ 34. Kh1 Rxh2#) 33... Nxe7 34. a4) 32... Bg4 {[%emt 0:00:43] ( -> ...Ne3)} 33. Nd6 {[%emt 0:00:10] Black must now prevent Qf7+.} Ne3 {[%emt 0:00:12][%csl Gg4][%cal Rc2e2] A dynamic duo of knights.} 34. Qa8+ {[%emt 0:00:09]} Kh7 {[%emt 0:00:02][%csl Gg4][%cal Rc2e2] Black mates.} 35. Qa6 {[%emt 0:00:01]} Nf4 {[%emt 0:00:08][%cal Rf4g2]} 36. Qf1 {[%emt 0:00:07]} Nxf1 {[%emt 0:00:04]} 37. Kxf1 {[%emt 0:00:01]} Rxh2 {[%emt 0:00:03] Weighted Error Value: White=1.06/Black=0.19 (very precise) .  Loses game:     	White=2     	---        Missed win:     	---       	Black=1      Mistake:       	White=4     	Black=3      Inaccurate:     	White=4     	Black=1      OK:         	White=6     	Black=12     Best:        	White=2     	Black=4      Strong:       	White=1     	Black=1} (37... Bh3+ $142 38. Kg1 Rg2+ 39. Kh1 Nd3 40. Ne4 f5 (40... Nxb4 $2 41. a4 $19) 41. Rg1 Rxg1+ (41... Rxa2 $2 42. Ng5+ Kg6 43. Nxh3+ Kf6 44. Rg3 $19) 42. Kxg1 fxe4 43. b5 e3 44. a3 e2 45. Kh1 e1=Q#) 0-1